lending/lending_fUSD_20251016
["ID","MTS","AMOUNT","RATE_DAILY","PERIOD"]
[391387828,1760591444135,-151.0,0.0001618,2]
[391387830,1760591444144,-151.0,0.0001618,2]
[391387832,1760591444154,-151.726235,0.0001618,2]
[391387834,1760591444162,-151.0,0.0001618,2]
[391387835,1760591444172,-151.0,0.0001618,2]
[391387837,1760591444181,-151.0,0.0001618,2]
[391387839,1760591444190,-270.337047,0.0001618,2]
[391387841,1760591444200,-151.0,0.0001618,2]
[391387843,1760591444209,-151.0,0.0001618,2]
[391387845,1760591444218,-151.0,0.0001618,2]
[391387847,1760591444227,-167.865007,0.0001618,2]
[391387849,1760591444237,-151.0,0.0001618,2]
[391387851,1760591444246,-151.0,0.0001618,2]
[391387853,1760591444255,-151.0,0.0001618,2]
[391387855,1760591444264,-152.549496,0.0001618,2]
[391387857,1760591444273,-187.361363,0.0001618,2]
[391387859,1760591444283,-151.0,0.0001618,2]
[391387861,1760591444291,-151.0,0.0001618,2]
[391387863,1760591444300,-151.0,0.0001618,2]
[391387865,1760591444309,-151.0,0.0001618,2]
[391387867,1760591444318,-151.0,0.0001618,2]
[391387869,1760591444327,-151.0,0.0001618,2]
[391387871,1760591444336,-151.0,0.0001618,2]
[391387873,1760591444345,-203.390075,0.0001618,2]
[391387875,1760591444354,-152.58749513,0.0001618,2]
[391387877,1760591444363,-156.06597639,0.00016184,2]
[391387879,1760591444372,-12991.04859376,0.00016191,2]
[391387881,1760591444381,-156.06597639,0.00016206,2]
[391387883,1760591444391,-12991.04859376,0.00016216,2]
[391387885,1760591444400,-156.06597639,0.00016228,2]
[391387888,1760591444411,-12991.04859376,0.0001624,2]
[391387889,1760591444420,-156.06597639,0.0001625,2]
[391387892,1760591444430,-152.454081,0.00016258,2]
[391387894,1760591444439,-152.038837,0.00016258,2]
[391387895,1760591444447,-154.75471,0.00016258,2]
[391387897,1760591444456,-154.198005,0.00016258,2]
[391387899,1760591444465,-151.0,0.00016258,2]
[391387901,1760591444474,-151.0,0.00016258,2]
[391387903,1760591444483,-151.0,0.00016258,2]
[391387905,1760591444493,-151.0,0.00016258,2]
[391387907,1760591444502,-160.622626,0.00016258,2]
[391387909,1760591444511,-151.0,0.00016258,2]
[391387911,1760591444520,-151.0,0.00016258,2]
[391387914,1760591444529,-151.0,0.00016258,2]
[391387916,1760591444538,-151.0,0.00016258,2]
[391387918,1760591444548,-12991.04859376,0.00016265,2]
[391387920,1760591444558,-153.845601,0.00016265,2]
[391387922,1760591444567,-151.0,0.00016265,2]
[391387924,1760591444575,-3.04756357,0.00016265,2]
[391387926,1760591444587,-147.95243643,0.00016265,2]
[391387928,1760591444597,-983.296153,0.00016265,2]
[391387930,1760591444606,-983.296153,0.00016265,2]
[391387932,1760591444615,-983.296153,0.00016265,2]
[391387934,1760591444625,-983.296153,0.00016265,2]
[391387936,1760591444634,-151.0,0.00016265,2]
[391387938,1760591444643,-152.34069,0.00016265,2]
[391387940,1760591444653,-316.206409,0.00016265,2]
[391387942,1760591444662,-316.206409,0.00016265,2]
[391387944,1760591444671,-151.0,0.00016265,2]
[391387946,1760591444679,-316.206409,0.00016265,2]
[391387948,1760591444689,-151.0,0.00016265,2]
[391387950,1760591444698,-316.206409,0.00016265,2]
[391387952,1760591444707,-151.0,0.00016265,2]
[391387954,1760591444716,-152.103103,0.00016265,2]
[391387956,1760591444725,-151.0,0.00016265,2]
[391387958,1760591444734,-151.0,0.00016265,2]
[391387960,1760591444744,-151.0,0.00016265,2]
[391387962,1760591444753,-621.140781,0.00016265,2]
[391387964,1760591444763,-621.140781,0.00016265,2]
[391387966,1760591444772,-621.140781,0.00016265,2]
[391387968,1760591444782,-621.140781,0.00016265,2]
[391387970,1760591444792,-156.06597639,0.00016272,2]
[391387972,1760591444801,-12991.04859376,0.00016289,2]
[391387974,1760591444810,-1271.9123,0.00016291,2]
[391387976,1760591444820,-156.06597639,0.00016294,2]
[391387978,1760591444830,-8322.9375518,0.00016314,2]
[391388183,1760591446731,-3308.31803772,0.00015832,2]
[391393420,1760591594430,500.0,0.00027397,120]
[391393421,1760591598402,2000.0,0.00027397,120]
[391393422,1760591777932,500.0,0.00027397,120]
[391393426,1760592044626,1500.0,0.00027397,120]
[391393429,1760592194786,500.0,0.00027397,120]
[391393430,1760592198449,2000.0,0.00027397,120]
[391393431,1760592212832,500.0,0.00027397,120]
[391393445,1760592441909,1000.0,0.00027397,120]
[391393447,1760592569304,-1537.89373234,0.000149,2]
[391393448,1760592569326,-751.07312029,0.000149,2]
[391393449,1760592569347,-290.23483847,0.00014997,2]
[391393450,1760592569368,-12420.7983089,0.00015,2]
[391393451,1760592570620,-15000.0,0.00015,2]
[391393452,1760592571542,-15000.0,0.00015,2]
[391393453,1760592573204,-15000.0,0.00015,2]
[391393454,1760592586763,-3334.0,0.00015,2]
[391393469,1760592632630,-198.55232819,0.00014973,2]
[391393470,1760592632640,-501.68209413,0.00014973,2]
[391393471,1760592632652,-504.14620302,0.00014973,2]
[391393472,1760592632662,-514.61037805,0.00014973,2]
[391393473,1760592632671,-20523.21059721,0.00015,2]
[391393474,1760592632694,-164390.7874851,0.00015,2]
[391393475,1760592632705,-80109.81323683,0.00015,2]
[391393476,1760592632762,-955.64905363,0.00015,2]
[391393484,1760592638314,-296.27994,0.00015,2]
[391393615,1760592640015,-410.80525784,0.00015,2]
[391393620,1760592640051,-4061.40999913,0.00015,2]
[391393842,1760592641182,-1112.6950077,0.00015,2]
[391393846,1760592641195,-544.2039824,0.00015,2]
[391393849,1760592641207,-1473.93976747,0.00015,2]
[391393856,1760592641234,-1754.0,0.00015,2]
[391393859,1760592641246,-864.24787903,0.00015,2]
[391393914,1760592641646,-6746.96716314,0.00015,2]
[391393943,1760592641904,-1386.20851868,0.00015,2]
[391394114,1760592643707,-11120.0,0.00015,2]
[391394382,1760592646446,-252.50569999,0.00015,2]
[391394384,1760592646457,-323.59434349,0.00015,2]
[391394386,1760592646469,-535.9862601,0.00015,2]
[391397820,1760592681583,500.0,0.00027397,120]
[391398844,1760592795542,500.0,0.00027397,120]
[391398845,1760592798205,2000.0,0.00027397,120]
[391398846,1760592812086,500.0,0.00027397,120]
[391398851,1760593151831,150.2,7.44e-05,2]
[391398852,1760593152506,150.2,8.184e-05,2]
[391398853,1760593152568,150.2,8.928e-05,2]
[391398854,1760593152760,150.2,9.672e-05,2]
[391398855,1760593152834,150.2,0.00010416,2]
[391398856,1760593153032,150.2,0.0001116,2]
[391398857,1760593153258,150.2,0.00011904,2]
[391398858,1760593153480,150.2,0.00012648,2]
[391398859,1760593153886,150.2,0.00013392,2]
[391398860,1760593158089,2222.0,0.00027397,120]
[391398861,1760593394266,500.0,0.00027397,120]
[391398862,1760593397253,2000.0,0.00027397,120]
[391398864,1760593411816,500.0,0.00027397,120]
[391398868,1760593517014,500.0,0.00027397,120]
[391398869,1760593610630,1721.67616536,0.000135,2]
[391398878,1760593831527,-166.66,0.00013699,2]
[391398879,1760593831536,-435.21,0.00013699,2]
[391398880,1760593831546,-166.66,0.00013985,2]
[391398881,1760593831556,-150.2,0.00014136,2]
[391398882,1760593831566,-166.66,0.00014271,2]
[391398883,1760593831576,-200.0,0.00014297,2]
[391398884,1760593831586,-166.66,0.00014558,2]
[391398885,1760593831595,-1600.0,0.00014696,2]
[391398886,1760593831605,-176.0,0.000147,2]
[391398887,1760593831615,-250.0,0.00014831,7]
[391398888,1760593831625,-3686.0,0.00014841,2]
[391398889,1760593831635,-166.66,0.00014844,2]
[391398890,1760593831645,-789.21,0.00014856,2]
[391398891,1760593831654,-703.57,0.00014872,2]
[391398892,1760593831664,-150.2,0.0001488,2]
[391398893,1760593831675,-180.4704,0.000149,2]
[391398894,1760593831684,-1302.1061,0.000149,2]
[391398895,1760593831694,-303.78962481,0.000149,2]
[391398896,1760593831703,-157.44,0.00014962,2]
[391398897,1760593831713,-200.0,0.00014991,2]
[391398898,1760593831723,-38431.23742588,0.00015,2]
[391398899,1760593831766,-2597.03004354,0.00015,2]
[391398900,1760593831776,-49062.87119845,0.00015,2]
[391398901,1760593831786,-1673.59216,0.00015,2]
[391398902,1760593831795,-250.0,0.00015068,2]
[391398903,1760593831805,-300.0,0.00015068,2]
[391398904,1760593831815,-2929.3624195,0.00015096,2]
[391398905,1760593831824,-1559.2135859,0.00015096,2]
[391398906,1760593831834,-2127.4875389,0.00015096,2]
[391398907,1760593831844,-908.4622393,0.00015096,2]
[391398908,1760593831853,-2049.3618585,0.00015096,2]
[391398910,1760593831863,-800.94,0.000151,2]
[391398912,1760593831872,-166.66,0.00015131,2]
[391398914,1760593831882,-204.26,0.0001516,2]
[391398915,1760593831891,-1673.59216,0.0001527,2]
[391398916,1760593831901,-175.9,0.000153,2]
[391398917,1760593831910,-474.66,0.000153,2]
[391398918,1760593831920,-1400.0,0.000153,5]
[391398919,1760593831929,-250.0,0.00015359,2]
[391398920,1760593831939,-405.0,0.0001538,2]
[391398921,1760593831950,-2751.0,0.0001538,2]
[391398922,1760593831960,-666.0,0.0001538,3]
[391398923,1760593831970,-352.0,0.000154,2]
[391398924,1760593831980,-2800.0,0.000154,5]
[391398925,1760593831990,-150.0,0.00015461,2]
[391398926,1760593832000,-20000.0,0.00015463,7]
[391398927,1760593832009,-515.0,0.00015479,2]
[391398928,1760593832019,-4300.0,0.000155,5]
[391398929,1760593832029,-160.036113,0.000155,2]
[391398930,1760593832038,-151.0,0.000155,2]
[391398931,1760593832048,-161.419559,0.00015507,2]
[391398932,1760593832058,-151.0,0.00015507,2]
[391398933,1760593832068,-151.0,0.00015507,2]
[391398934,1760593832077,-786.636923,0.00015507,2]
[391398935,1760593832087,-786.636923,0.00015507,2]
[391398936,1760593832097,-154.432716,0.00015507,2]
[391398937,1760593832106,-786.636923,0.00015507,2]
[391398940,1760593832117,-786.636923,0.00015507,2]
[391398942,1760593832127,-197.858445,0.00015507,2]
[391398944,1760593832137,-152.019819,0.00015507,2]
[391398946,1760593832147,-151.0,0.00015507,2]
[391398947,1760593832156,-151.0,0.00015507,2]
[391398950,1760593832166,-151.0,0.00015507,2]
[391398952,1760593832176,-151.0,0.00015507,2]
[391398954,1760593832186,-151.0,0.00015507,2]
[391398955,1760593832195,-151.0,0.00015507,2]
[391398957,1760593832206,-151.720123,0.00015507,2]
[391398959,1760593832216,-152.607731,0.00015507,2]
[391398960,1760593832226,-151.0,0.00015507,2]
[391398961,1760593832235,-151.0,0.00015507,2]
[391398962,1760593832245,-151.0,0.00015507,2]
[391398963,1760593832255,-252.965127,0.00015507,2]
[391398964,1760593832264,-252.965127,0.00015507,2]
[391398965,1760593832274,-151.0,0.00015507,2]
[391398966,1760593832284,-252.965127,0.00015507,2]
[391398967,1760593832295,-151.0,0.00015507,2]
[391398968,1760593832308,-252.965127,0.00015507,2]
[391398969,1760593832318,-151.0,0.00015507,2]
[391398970,1760593832328,-625.0,0.00015507,2]
[391398971,1760593832337,-721.12765535,0.00015507,2]
[391398972,1760593832349,-151.0,0.00015507,2]
[391398973,1760593832360,-151.0,0.00015507,2]
[391398974,1760593832371,-151.0,0.00015507,2]
[391398975,1760593832381,-151.0,0.00015507,2]
[391398976,1760593832391,-151.0,0.00015507,2]
[391398977,1760593832401,-225.0,0.00015507,2]
[391398978,1760593832411,-270.70515425,0.00015507,2]
[391398979,1760593832424,-277.35679052,0.00015507,2]
[391398980,1760593832434,-250.0,0.00015507,2]
[391398981,1760593832444,-250.0,0.00015507,2]
[391398982,1760593832453,-250.0,0.00015507,2]
[391398983,1760593832463,-250.0,0.00015507,2]
[391398984,1760593832472,-250.0,0.00015507,2]
[391398985,1760593832482,-250.0,0.00015507,2]
[391398986,1760593832493,-250.0,0.00015507,2]
[391398987,1760593832502,-250.0,0.00015507,2]
[391398988,1760593832512,-250.0,0.00015507,2]
[391398989,1760593832523,-250.0,0.00015507,2]
[391398990,1760593832532,-322.6107,0.00015507,2]
[391398991,1760593832541,-250.0,0.00015507,2]
[391398992,1760593832551,-151.0,0.00015515,2]
[391398993,1760593832560,-154.20991,0.00015515,2]
[391398994,1760593832570,-151.0,0.00015515,2]
[391398995,1760593832580,-151.0,0.00015515,2]
[391398996,1760593832589,-151.0,0.00015515,2]
[391398997,1760593832598,-151.0,0.00015515,2]
[391398998,1760593832608,-212.344433,0.00015515,2]
[391398999,1760593832618,-151.0,0.00015515,2]
[391399000,1760593832628,-160.620512,0.00015515,2]
[391399001,1760593832637,-151.0,0.00015515,2]
[391399002,1760593832647,-151.0,0.00015515,2]
[391399003,1760593832657,-151.0,0.00015515,2]
[391399004,1760593832667,-151.0,0.00015515,2]
[391399005,1760593832678,-151.0,0.00015515,2]
[391399006,1760593832687,-151.0,0.00015515,2]
[391399007,1760593832697,-151.264103,0.00015515,2]
[391399008,1760593832707,-151.797954,0.00015515,2]
[391399009,1760593832717,-151.0,0.00015515,2]
[391399010,1760593832727,-157.406209,0.00015515,2]
[391399011,1760593832738,-151.0,0.00015515,2]
[391399012,1760593832747,-151.0,0.00015515,2]
[391399013,1760593832757,-529.604245,0.00015515,2]
[391399014,1760593832766,-151.0,0.00015515,2]
[391399015,1760593832776,-151.552827,0.00015515,2]
[391399016,1760593832786,-151.0,0.00015515,2]
[391399017,1760593832796,-151.0,0.00015515,2]
[391399018,1760593832805,-151.0,0.00015515,2]
[391399019,1760593832815,-151.0,0.00015515,2]
[391399020,1760593832824,-1760.496238,0.00015515,2]
[391399021,1760593832834,-151.0,0.00015515,2]
[391399022,1760593832843,-151.0,0.00015515,2]
[391399023,1760593832853,-1760.496238,0.00015515,2]
[391399024,1760593832863,-298.44884,0.00015515,2]
[391399025,1760593832872,-1760.496238,0.00015515,2]
[391399026,1760593832882,-1485.30101964,0.00015515,2]
[391399027,1760593832896,-275.19521836,0.00015515,2]
[391399028,1760593832906,-151.0,0.00015515,2]
[391399029,1760593832916,-151.0,0.00015515,2]
[391399030,1760593832926,-151.349589,0.00015515,2]
[391399031,1760593832935,-153.55867,0.00015515,2]
[391399032,1760593832945,-151.0,0.00015515,2]
[391399033,1760593832955,-151.0,0.00015515,2]
[391399034,1760593832964,-154.687895,0.00015515,2]
[391399035,1760593832974,-153.924731,0.00015515,2]
[391399036,1760593832983,-151.0,0.00015515,2]
[391399037,1760593832993,-151.0,0.00015515,2]
[391399038,1760593833002,-151.078084,0.00015515,2]
[391399039,1760593833012,-151.73939,0.00015515,2]
[391399040,1760593833021,-222.606938,0.00015515,2]
[391399041,1760593833031,-154.364004,0.00015515,2]
[391399042,1760593833040,-151.0,0.00015515,2]
[391399043,1760593833049,-151.0,0.00015515,2]
[391399044,1760593833058,-151.0,0.00015515,2]
[391399045,1760593833067,-7690.18133689,0.0001553,2]
[391399046,1760593833076,-1000.0,0.00015539,2]
[391399047,1760593833085,-5700.0,0.000156,5]
[391399048,1760593833095,-7690.18133685,0.0001562,2]
[391399049,1760593833104,-151.0,0.0001562,2]
[391399050,1760593833113,-151.0,0.0001562,2]
[391399051,1760593833122,-786.636923,0.0001562,2]
[391399052,1760593833131,-786.636923,0.0001562,2]
[391399053,1760593833140,-786.636923,0.0001562,2]
[391399054,1760593833150,-786.636923,0.0001562,2]
[391399055,1760593833159,-151.0,0.0001562,2]
[391399056,1760593833168,-151.0,0.0001562,2]
[391399057,1760593833178,-151.0,0.0001562,2]
[391399058,1760593833187,-297.12166,0.0001562,2]
[391399059,1760593833196,-151.0,0.0001562,2]
[391399060,1760593833205,-156.428586,0.0001562,2]
[391399061,1760593833215,-152.693909,0.0001562,2]
[391399062,1760593833224,-151.0,0.0001562,2]
[391399063,1760593833234,-151.0,0.0001562,2]
[391399064,1760593833243,-252.965127,0.0001562,2]
[391399065,1760593833253,-252.965127,0.0001562,2]
[391399066,1760593833262,-151.0,0.0001562,2]
[391399067,1760593833271,-252.965127,0.0001562,2]
[391399068,1760593833280,-151.0,0.0001562,2]
[391399069,1760593833290,-252.965127,0.0001562,2]
[391399070,1760593833304,-151.0,0.0001562,2]
[391399071,1760593833315,-626.66611489,0.00015629,2]
[391399072,1760593833324,-6515.75182384,0.000157,5]
[391399073,1760593833337,-684.24817616,0.000157,5]
[391399074,1760593833346,-7690.18133685,0.0001571,2]
[391399075,1760593833356,-497.32,0.00015735,2]
[391399076,1760593833365,-339.63,0.00015735,2]
[391399077,1760593833375,-1000.0,0.00015749,2]
[391399078,1760593833385,-1419.1652,0.00015749,2]
[391399079,1760593833394,-1673.59217,0.0001578,2]
[391399080,1760593833403,-151.0,0.00015799,2]
[391399081,1760593833413,-151.0,0.00015799,2]
[391399082,1760593833423,-151.0,0.00015799,2]
[391399083,1760593833432,-151.0,0.00015799,2]
[391399084,1760593833443,-151.0,0.00015799,2]
[391399085,1760593833452,-172.285979,0.00015799,2]
[391399086,1760593833462,-211.979363,0.00015799,2]
[391399087,1760593833929,-156.021,0.00015799,2]
[391399088,1760593833962,-7690.18133685,0.00015799,2]
[391399089,1760593833972,-151.0,0.000158,2]
[391399090,1760593833983,-151.0,0.000158,2]
[391399091,1760593833995,-151.0,0.000158,2]
[391399092,1760593834005,-151.0,0.000158,2]
[391399093,1760593834016,-153.258972,0.000158,2]
[391399094,1760593834027,-151.0,0.000158,2]
[391399095,1760593834037,-151.0,0.000158,2]
[391399096,1760593834048,-151.0,0.000158,2]
[391399097,1760593834057,-152.083764,0.000158,2]
[391399098,1760593834067,-151.0,0.000158,2]
[391399099,1760593834077,-191.288635,0.000158,2]
[391399100,1760593834088,-151.933678,0.000158,2]
[391399101,1760593834098,-151.0,0.000158,2]
[391399102,1760593834108,-151.0,0.000158,2]
[391399103,1760593834118,-151.0,0.000158,2]
[391399104,1760593834128,-151.0,0.000158,2]
[391399105,1760593834138,-151.0,0.000158,2]
[391399106,1760593834148,-177.06942,0.000158,2]
[391399107,1760593834158,-151.0,0.000158,2]
[391399108,1760593834168,-151.0,0.000158,2]
[391399109,1760593834179,-151.0,0.000158,2]
[391399110,1760593834188,-151.0,0.000158,2]
[391399111,1760593834198,-151.0,0.000158,2]
[391399112,1760593834208,-151.0,0.000158,2]
[391399113,1760593834219,-151.0,0.000158,2]
[391399114,1760593834229,-246.504812,0.000158,2]
[391399115,1760593834238,-151.0,0.000158,2]
[391399116,1760593834251,-151.0,0.000158,2]
[391399117,1760593834261,-151.849203,0.000158,2]
[391399118,1760593834271,-151.80873,0.000158,2]
[391399119,1760593834280,-151.549859,0.000158,2]
[391399120,1760593834290,-151.0,0.000158,2]
[391399121,1760593834304,-529.604245,0.000158,2]
[391399122,1760593834314,-300.922611,0.000158,2]
[391399123,1760593834324,-151.0,0.000158,2]
[391399124,1760593834334,-151.0,0.000158,2]
[391399125,1760593834345,-151.0,0.000158,2]
[391399126,1760593834355,-1760.496238,0.000158,2]
[391399127,1760593834364,-151.0,0.000158,2]
[391399128,1760593834374,-151.0,0.000158,2]
[391399129,1760593834384,-1760.496238,0.000158,2]
[391399130,1760593834394,-1760.496238,0.000158,2]
[391399131,1760593834404,-1760.496238,0.000158,2]
[391399132,1760593834414,-162.161218,0.000158,2]
[391399133,1760593834423,-151.0,0.000158,2]
[391399134,1760593834433,-1400.0,0.000158,5]
[391399135,1760593834444,-151.0,0.000158,2]
[391399136,1760593834454,-235.199526,0.000158,2]
[391399137,1760593834464,-786.636923,0.000158,2]
[391399138,1760593834474,-786.636923,0.000158,2]
[391399139,1760593834483,-786.636923,0.000158,2]
[391399140,1760593834495,-786.636923,0.000158,2]
[391399141,1760593834505,-151.0,0.000158,2]
[391399142,1760593834515,-151.0,0.000158,2]
[391399143,1760593834524,-151.0,0.000158,2]
[391399144,1760593834534,-1006.0,0.000158,2]
[391399145,1760593834544,-151.0,0.000158,2]
[391399146,1760593834553,-151.0,0.000158,2]
[391399147,1760593834563,-151.0,0.000158,2]
[391399148,1760593834573,-252.965127,0.000158,2]
[391399149,1760593834582,-252.965127,0.000158,2]
[391399150,1760593834593,-151.0,0.000158,2]
[391399151,1760593834603,-252.965127,0.000158,2]
[391399152,1760593834612,-151.0,0.000158,2]
[391399153,1760593834622,-252.965127,0.000158,2]
[391399154,1760593834633,-151.0,0.000158,2]
[391399155,1760593834643,-500.0,0.00015836,2]
[391399156,1760593834652,-7690.18133685,0.00015889,2]
[391399157,1760593834662,-152.510156,0.00015894,2]
[391399158,1760593834673,-151.00000014,0.00015894,2]
[391399159,1760593834683,-151.0,0.00015894,2]
[391399160,1760593834694,-152.319344,0.00015894,2]
[391399161,1760593834703,-151.873245,0.00015894,2]
[391399162,1760593834713,-151.0,0.00015894,2]
[391399163,1760593834724,-151.0,0.00015894,2]
[391399164,1760593834734,-151.614936,0.00015894,2]
[391399165,1760593834746,-151.0,0.00015894,2]
[391399166,1760593834755,-151.0,0.00015894,2]
[391399167,1760593834765,-151.0,0.00015894,2]
[391399168,1760593834775,-151.0,0.00015894,2]
[391399169,1760593834784,-1400.0,0.000159,5]
[391399170,1760593834795,-546.15,0.00015945,2]
[391399171,1760593834804,-657.18898028,0.00015969,2]
[391399172,1760593834815,-202.52641655,0.00015972,2]
[391399173,1760593834824,-839.3708708,0.00015979,2]
[391399174,1760593835683,-6850.81046605,0.00015979,2]
[391399175,1760593835693,-1630.09545266,0.00015987,2]
[391399176,1760593835703,-152.473314,0.00015987,2]
[391399177,1760593835714,-151.0,0.00015987,2]
[391399178,1760593835723,-160.004088,0.00015987,2]
[391399179,1760593835733,-163.792378,0.00015994,2]
[391399180,1760593835742,-151.0,0.00015994,2]
[391399181,1760593835752,-151.675622,0.00015994,2]
[391399182,1760593835761,-152.754799,0.00015994,2]
[391399183,1760593835770,-151.0,0.00016012,2]
[391399184,1760593835780,-151.0,0.00016012,2]
[391399185,1760593835789,-151.0,0.00016012,2]
[391399186,1760593835798,-154.930218,0.00016012,2]
[391399187,1760593835808,-151.0,0.00016012,2]
[391399188,1760593835820,-151.0,0.00016012,2]
[391399189,1760593835829,-151.0,0.00016012,2]
[391399190,1760593835838,-152.571042,0.00016012,2]
[391399191,1760593835848,-154.005631,0.00016012,2]
[391399192,1760593835858,-151.0,0.00016012,2]
[391399193,1760593835867,-151.715732,0.00016012,2]
[391399194,1760593835876,-151.0,0.00016012,2]
[391399195,1760593835886,-152.124692,0.00016012,2]
[391399196,1760593835895,-151.0,0.00016012,2]
[391399197,1760593835905,-151.0,0.00016012,2]
[391399198,1760593835915,-151.0,0.00016012,2]
[391399199,1760593835924,-156.036121,0.00016012,2]
[391399200,1760593835934,-152.543119,0.00016012,2]
[391399201,1760593835943,-164.964222,0.00016012,2]
[391399202,1760593835952,-151.0,0.00016012,2]
[391399203,1760593835963,-151.0,0.00016012,2]
[391399204,1760593835972,-1760.496238,0.00016012,2]
[391399205,1760593835981,-151.0,0.00016012,2]
[391399206,1760593835993,-151.0,0.00016012,2]
[391399207,1760593836002,-1760.496238,0.00016012,2]
[391399208,1760593836011,-1760.496238,0.00016012,2]
[391399209,1760593836021,-1760.496238,0.00016012,2]
[391399210,1760593836030,-151.0,0.00016012,2]
[391399211,1760593836039,-657.18898021,0.00016022,2]
[391399212,1760593836049,-273.258294,0.00016022,2]
[391399213,1760593836058,-252.965127,0.00016022,2]
[391399214,1760593836067,-252.965127,0.00016022,2]
[391399215,1760593836076,-151.0,0.00016022,2]
[391399216,1760593836224,-252.965127,0.00016022,2]
[391399217,1760593836234,-151.0,0.00016022,2]
[391399218,1760593836246,-252.965127,0.00016022,2]
[391399219,1760593836255,-151.0,0.00016022,2]
[391399220,1760593836265,-7690.18133685,0.00016069,2]
[391399221,1760593836275,-151.0,0.00016069,2]
[391399222,1760593836285,-786.636923,0.00016069,2]
[391399223,1760593836298,-786.636923,0.00016069,2]
[391399224,1760593836308,-786.636923,0.00016069,2]
[391399225,1760593836317,-786.636923,0.00016069,2]
[391399226,1760593836326,-151.0,0.00016069,2]
[391399227,1760593836337,-222.744543,0.00016069,2]
[391399228,1760593836347,-151.0,0.00016069,2]
[391399229,1760593836356,-151.0,0.00016069,2]
[391399230,1760593836366,-151.0,0.00016069,2]
[391399231,1760593836380,-657.18898021,0.00016074,2]
[391399232,1760593836390,-152.091544,0.00016094,2]
[391399233,1760593836400,-529.604245,0.00016094,2]
[391399234,1760593836411,-529.604245,0.00016094,2]
[391399235,1760593836428,-301.99999931,0.00016094,2]
[391399236,1760593836439,-1760.62,0.000161,7]
[391399237,1760593836448,-657.18898021,0.00016127,2]
[391399238,1760593836457,-28475.38731507,0.00016158,2]
[391399239,1760593836469,-1254.41808677,0.00016158,2]
[391399246,1760593837920,-6610.54808816,0.00016158,2]
[391399266,1760593838119,-385.36424049,0.00016158,2]
[391399268,1760593838130,-1221.26746359,0.00016158,2]
[391399271,1760593838148,-358.33485164,0.00016158,2]
[391399273,1760593838160,-488.66430191,0.00016158,2]
[391399276,1760593838171,-1381.47159268,0.00016158,2]
[391399278,1760593838182,-1135.1,0.00016158,2]
[391399416,1760593839554,-4554.69198276,0.00016158,2]
[391399418,1760593839565,-579.24102696,0.00016158,2]
[391399420,1760593839575,-99.934473,0.00016158,2]
[391399422,1760593839586,-3266.44289702,0.00016158,2]
[391399734,1760593842624,-490.0,0.00016158,2]
[391399752,1760593842775,-3833.80396683,0.00016158,2]
[391399754,1760593842784,-156.06597639,0.00016161,2]
[391399756,1760593842794,-657.18898021,0.0001618,2]
[391399758,1760593842804,-157.727082,0.00016195,2]
[391399760,1760593842814,-682.5689982,0.000162,2]
[391400036,1760593845666,-305.86199999,0.000155,2]